Cogmind - Beta 11.1 @@@ ROGUE MODE // 2022.11.11 @ 10:14:48 Player: Beepinex Result: Self-destructed Performance ------------- Evolutions (1) 500 Regions Visited (3) 600 Robots Destroyed (56) 280 Value Destroyed (1201) 1201 Prototype IDs (2) 40 Alien Tech Used (0) 0 Bonus (134) 134 TOTAL SCORE: 2755 Bonus ------- High Alert Combat Kills 64 Follower Combat Kills 173 Friendly Fire -103 Cogmind --------- Core Integrity 143/400 Matter 92/300 Energy 199/250 System Corruption 0% Temperature Cool (0) Movement Walking (120) Location -9/Materials Parts ------- > --- POWER (1) -------- Ion Engine > --- PROPULSION (3) --- Aluminum Leg Aluminum Leg Carbon-fiber Leg > --- UTILITY (3) ------ Medium Storage Unit Hacking Suite System Shield > --- WEAPON (2) ------- Autogun Rocket Launcher > --- INVENTORY (10) --- Weight Redist. System Weight Redist. System Seismic Detector Light Armor Plating Light Armor Plating Hacking Suite System Shield Autogun Datajack Peak State ------------ > --- POWER ------------ Light Nuclear Core > --- PROPULSION ------- Carbon-fiber Leg Carbon-fiber Leg > --- UTILITY ---------- Medium Storage Unit Hacking Suite System Shield > --- WEAPON ----------- Autogun Rocket Launcher > --- INVENTORY -------- Ion Engine Weight Redist. System Seismic Detector Light Armor Plating Light Armor Plating Hacking Suite System Shield Autogun Autogun [Rating: 21] Favorites ----------- Power Light Ion Engine Engine Light Ion Engine Power Core Light Nuclear Core Propulsion Aluminum Leg Leg Aluminum Leg Flight Unit Flight Unit Utility Medium Storage Unit Device Seismic Detector Storage Medium Storage Unit Hackware Hacking Suite Protection Light Armor Plating Weapon Autogun Energy Gun EM Pulse Gun Ballistic Gun Autogun Launcher Rocket Launcher Build | -11 -10 -10 -9 ------- Run | Scr Mat Min Mat Slots Evolved 2 | . . . 2 Power . | . . . . Propulsion 1 | . . . 1 Utility 1 | . . . 1 Weapon . | . . . . Parts Attached 47 | 8 17 1 21 Power 5 | 1 1 . 3 Engine 4 | 1 1 . 2 Core 1 | . . . 1 Reactor . | . . . . Propulsion 16 | 2 5 . 9 Treads . | . . . . Leg 12 | 2 5 . 5 Wheel . | . . . . Hover . | . . . . Flight 4 | . . . 4 Utility 12 | 3 4 1 4 Device 4 | 2 . 1 1 Storage 2 | 1 1 . . Processor . | . . . . Hackware 2 | . . . 2 Protection 4 | . 3 . 1 Artifact . | . . . . Weapon 14 | 2 7 . 5 Energy Gun 2 | . 2 . . Energy Cannon . | . . . . Ballistic Gun 8 | 2 4 . 2 Ballistic Cannon . | . . . . Launcher 4 | . 1 . 3 Special Weapon . | . . . . Impact Weapon . | . . . . Slashing Weapon . | . . . . Piercing Weapon . | . . . . Special Melee Weapon . | . . . . Unidentified Prototypes . | . . . . Parts Lost 6 | . . . 6 Power 1 | . . . 1 Propulsion 4 | . . . 4 Utility . | . . . . Weapon 1 | . . . 1 Highest Loss Streak 2 | . . . 2 To Critical Strikes . | . . . . Average Slot Usage (%) 91 | . 96 100 79 Engine 11 | . 14 14 5 Core 1 | . . . 4 Leg 24 | . 27 28 16 Flight 1 | . . . 5 Device 3 | . . 14 2 Storage 12 | . 14 14 11 Hackware 5 | . . . 17 Protection 5 | . 11 . . Energy Gun 3 | . 6 . . Ballistic Gun 18 | . 19 28 12 Launcher 1 | . . . 2 Naked Turns . | . . . . Heaviest Build 24 | 11 24 22 24 Greatest Support 35 | 20 20 20 35 Greatest Overweight (x) 4 | . 1 1 4 Average Overweight (x) . | . . 1 . Largest Inventory Capacity 10 | 8 10 10 10 Average Capacity 9 | 7 9 10 10 Most Carried 10 | 5 10 10 10 Average Carried 8 | 2 8 10 9 Final Capacity 10 | 8 10 10 10 Final Carried 10 | 3 10 10 9 Class Distribution -------------------- 50% | Mutant 43% | Scavenger-Mutant 5% | Hacker-Mutant Dominant Class ---------------- Mutant | -10/Materials Scavenger-Mutant | -10/Mines Scavenger-Mutant | -9/Materials Resources | -11 -10 -10 -9 ----------- Run | Scr Mat Min Mat Matter Collected 1221 | 360 277 39 545 Remotely . | . . . . Salvage Created 1765 | 151 471 96 1047 Parts 118 | 14 39 4 61 Haulers Intercepted 6 | . 2 . 4 Recyclers Shooed 1 | 1 . . . Parts Field Recycled . | . . . . Retrieved Matter . | . . . . Parts Self-Destructed . | . . . . Prevented . | . . . . Kills | -11 -10 -10 -9 ------- Run | Scr Mat Min Mat Combat Hostiles Destroyed 29 | . 8 2 19 Guns 22 | . 6 2 14 AOE 7 | . 2 . 5 Classes Destroyed 12 | 3 4 . 5 Worker 4 | 2 1 . 1 Builder 1 | . . . 1 Tunneler 2 | 2 . . . Hauler 6 | . 2 . 4 Recycler 2 | 1 . . 1 Operator 4 | . 2 . 2 Watcher 7 | . 3 . 4 Swarmer 5 | . . . 5 Grunt 19 | . 8 2 9 Brawler 1 | . . . 1 Sentry 4 | . . . 4 Zionite 1 | . . . 1 Best Kill Streak 8 | 2 5 2 8 Combat Bots Only 6 | . 2 2 6 Max Kills in Single Turn 6 | 1 2 1 6 Gunslinging . | . . . . Exploded 4 | . 2 . 4 Melee . | . . . . Uniques/NPCs Destroyed . | . . . . Combat | -11 -10 -10 -9 -------- Run | Scr Mat Min Mat Damage Taken 1294 | . 379 . 915 Core 285 | . 28 . 257 Absorbed by Shields . | . . . . Regen/Repaired (Parts) 37 | . 37 . . Core Remaining (%) 94 | 100 . 88 . Volleys Fired 171 | 15 37 2 117 Largest 2 | 2 2 2 2 Hottest 60 | 40 60 46 46 Shots Fired 229 | 30 70 4 125 Gun 218 | 30 66 4 118 Cannon . | . . . . Launcher 11 | . 4 . 7 Special . | . . . . Kinetic 196 | 30 44 4 118 Thermal . | . . . . Explosive 11 | . 4 . 7 Electromagnetic 22 | . 22 . . Robot Hit Streak 9 | 7 8 7 9 Robot Miss Streak 7 | 3 7 . 4 Penetration Max . | . . . . Secondary Targets 1 | . 1 . . Max Gunslinging Chain 1 | . 1 . . Shots Hit Robots 148 | 17 41 3 87 Core Hits 92 | 10 28 3 51 Critical Kills . | . . . . Critical Parts Destroyed . | . . . . Critical Strikes . | . . . . Melee Attacks . | . . . . Impact . | . . . . Slashing . | . . . . Piercing . | . . . . Sneak Attacks . | . . . . Combat Hostiles . | . . . . Follow-up Attacks . | . . . . Damage Inflicted 2811 | 145 808 51 1807 Guns 1973 | 145 504 51 1273 Cannons . | . . . . Explosions 830 | . 304 . 526 Melee . | . . . . Ramming 8 | . . . 8 Kinetic 1794 | 145 325 51 1273 Thermal 28 | . 28 . . Explosive 802 | . 276 . 526 Electromagnetic 179 | . 179 . . Impact . | . . . . Slashing . | . . . . Piercing . | . . . . Highest Corruption . | . . . . Average Corruption . | . . . . Corruption Purged . | . . . . Corruption Blocked . | . . . . Overload Shots . | . . . . Overflow Damage 19 | . . . 19 Projectiles . | . . . . Explosions 19 | . . . 19 Melee . | . . . . Knockbacks . | . . . . Impact . | . . . . Kinetic . | . . . . Secondary . | . . . . Self-Inflicted Damage 103 | . 54 . 49 Shots 4 | . 3 . 1 Rammed . | . . . . Targets Rammed 3 | . . . 3 Kicked 3 | . . . 3 Crushed . | . . . . Highest Temperature 160 | . 160 12 33 Average Temperature 23 | . 40 7 6 Received Heat Transfer 516 | . 180 . 336 Siege Activations . | . . . . Robots Corrupted . | . . . . Combat Hostiles . | . . . . Parts Fried . | . . . . Impact Corruptions . | . . . . Robots Melted . | . . . . Combat Hostiles . | . . . . Parts Melted . | . . . . Heat Transferred . | . . . . Parts Sabotaged . | . . . . Parts Stolen . | . . . . Parts Stripped . | . . . . Power Chain Reactions 1 | . 1 . . Missiles Intercepted . | . . . . Alert | -11 -10 -10 -9 ------- Run | Scr Mat Min Mat Peak Influence 649 | 25 250 60 649 Initial 21 | . 16 2 21 Average 175 | 10 107 23 388 Maximum Alert Level 2 | . 1 . 2 Low Security (%) 69 | 100 93 100 13 Level 1 13 | . 6 . 32 Level 2 16 | . . . 53 Level 3 . | . . . . Level 4 . | . . . . Level 5 . | . . . . High Security . | . . . . Max Security . | . . . . Squads Dispatched 5 | . 2 . 3 Investigation 2 | . . . 2 Extermination . | . . . . Reinforcement 3 | . 2 . 1 Assault . | . . . . Garrison . | . . . . Intercept . | . . . . Searches Triggered . | . . . . Construction Impeded 1 | . . . 1 Haulers Reinforced . | . . . . Active Scanning Responses . | . . . . Cargo Convoy Interrupts . | . . . . Stealth | -11 -10 -10 -9 --------- Run | Scr Mat Min Mat Distress Signals 3 | . 1 . 2 Communications Jammed . | . . . . Distress Signals . | . . . . Times Spotted 54 | . 17 4 33 Peak Tracking Total 9 | . 4 2 9 Tactical Retreats 1 | . 1 . . Traps | -11 -10 -10 -9 ------- Run | Scr Mat Min Mat Traps Triggered 2 | . 1 . 1 Indirectly . | . . . . Trap Hack Attempts . | . . . . Triggered . | . . . . Disarmed . | . . . . Reprogrammed . | . . . . Reused . | . . . . Traps Extracted . | . . . . Installed . | . . . . Triggered . | . . . . Machines | -11 -10 -10 -9 ---------- Run | Scr Mat Min Mat Machines Disabled 7 | . 4 . 3 Max in Single Turn 3 | . 3 . 1 Machines Sabotaged . | . . . . Garrisons Compromised . | . . . . Overloaded Fab Kills . | . . . . Hacking | -11 -10 -10 -9 --------- Run | Scr Mat Min Mat Machines Accessed 13 | . 9 . 4 Terminals 9 | . 6 . 3 Fabricators . | . . . . Repair Stations 1 | . 1 . . Recycling Units 3 | . 2 . 1 Scanalyzers . | . . . . Garrison Access . | . . . . Total Hacks 41 | . 28 . 13 Successful 24 | . 14 . 10 Failed 17 | . 14 . 3 Catastrophic 2 | . 1 . 1 Database Lockouts . | . . . . Manual 36 | . 24 . 12 Terminals 27 | . 18 . 9 Fabricators . | . . . . Repair Stations 2 | . 2 . . Recycling Units 12 | . 8 . 4 Scanalyzers . | . . . . Garrison Access . | . . . . Terminal Hacks 6 | . 2 . 4 Prototype ID Bank 1 | . 1 . . Branch Access Points 1 | . . . 1 Terminal Index 2 | . 1 . 1 Recycling Unit Index 1 | . . . 1 Zone Layout 1 | . . . 1 Fabricator Hacks . | . . . . Repair Station Hacks 2 | . 2 . . Scan Component 1 | . 1 . . Repair 1 | . 1 . . Recycling Unit Hacks . | . . . . Scanalyzer . | . . . . Garrison Access Hacks . | . . . . Unauthorized Hacks 16 | . 10 . 6 Terminals 7 | . 5 . 2 Track 1 | . 1 . . Botnet 4 | . 3 . 1 Operators 2 | . 1 . 1 Fabricators . | . . . . Repair Stations . | . . . . Recycling Units 9 | . 5 . 4 Monitor 2 | . 1 . 1 Reject 3 | . 2 . 1 Recyclers 2 | . 1 . 1 Mask 2 | . 1 . 1 Scanalyzers . | . . . . Garrison Access . | . . . . Data Cores Recovered 1 | . . . 1 Used . | . . . . Hacking Detections 10 | . 8 . 2 Full Trace Events . | . . . . Feedback Events . | . . . . Feedback Blocked . | . . . . Robot Schematics Acquired . | . . . . Robots Built . | . . . . Authchips . | . . . . Time . | . . . . Total Robot Build Rating . | . . . . Part Schematics Acquired . | . . . . Parts Built . | . . . . Authchips . | . . . . Time . | . . . . Total Part Build Rating . | . . . . Parts Repaired 1 | . 1 . . Time 26 | . 26 . . Parts Recycled . | . . . . Recycled Matter . | . . . . Retrieved Matter . | . . . . Retrieved Components . | . . . . Parts Scanalyzed . | . . . . Part Schematics Acquired . | . . . . Parts Damaged . | . . . . Bothacking | -11 -10 -10 -9 ------------ Run | Scr Mat Min Mat Used RIF Installer . | . . . . Robots Hacked . | . . . . Non-combat . | . . . . Combat . | . . . . Robot Hacks Applied . | . . . . Relay Couplers Released . | . . . . Fabnet Peak Effective % . | . . . . Robots Rewired . | . . . . Allies Hacked . | . . . . Hacks Repelled . | . . . . Allies | -11 -10 -10 -9 -------- Run | Scr Mat Min Mat Total Allies 5 | . . 5 . Largest Group 4 | . . 4 4 Highest-Rated Group 67 | . . 67 67 Highest-Rated Ally 31 | . . 31 31 Total Orders . | . . . . Ally Attacks 32 | . . 11 21 Total Damage 363 | . . 104 259 Kills 7 | . . 2 5 Allies Corrupted . | . . . . Allies Melted . | . . . . Intel | -11 -10 -10 -9 ------- Run | Scr Mat Min Mat Robot Analysis Total . | . . . . Derelict Logs Recovered 1 | . . 1 . Drone Launches . | . . . . Drone Recoveries . | . . . . Exploration | -11 -10 -10 -9 ------------- Run | Scr Mat Min Mat Turns Passed 2810 | 151 1260 512 887 Spaces Moved 1432 | 82 669 264 417 Core 14 | 14 . . . Treads . | . . . . Legs 1361 | 68 669 264 360 Wheels . | . . . . Hover . | . . . . Flight 57 | . . . 57 Fastest Speed 34 | 50 120 190 34 Average Speed 144 | 108 146 190 121 Slowest Speed 360 | 120 190 190 360 Overloaded Moves . | . . . . Propulsion Burnouts . | . . . . Robots Hopped . | . . . . Cave-ins Triggered . | . . . . Exploration Rate (%) 52 | 4 88 72 44 Regions Visited 3 Branch Regions 1 Pre-discovered Areas . | . . . . Known Exits Taken . | . . . . Unknown Exits Taken 3 | 1 1 1 . Scrap Searched 2 | . . 2 . Spaces Dug . | . . . . Terrain Destroyed 67 | . 14 . 53 Melee . | . . . . Projectile . | . . . . AOE 67 | . 14 . 53 Terrain Rammed . | . . . . Walls Destroyed . | . . . . Machines Disabled . | . . . . Actions | -11 -10 -10 -9 --------- Run | Scr Mat Min Mat Total 1976 | 120 889 272 695 Wait 268 | 4 141 4 119 Move 1429 | 81 668 263 417 Hop . | . . . . Pick Up 34 | 11 16 1 6 Fast Attach 12 | . 3 . 9 Attach 18 | 7 4 . 7 Detach 4 | . 1 . 3 Swap 17 | 1 10 1 5 Drop 20 | 1 9 1 9 Fire 171 | 15 37 2 117 Melee . | . . . . Ram . | . . . . Kick 3 | . . . 3 Crush . | . . . . Escape Stasis . | . . . . Rewire . | . . . . Trap . | . . . . Miscellaneous . | . . . . Route ------- -11/Scrapyard -10/Materials (discovered 4 exits: *Mat x3 / [*Min]) -10/Mines -9/Materials (discovered 2 exits: *Min / Sto) History --------- Turn | Location | Event 3 | -11/Scrapyard | Discovered new exit (range 15) 152 | -11/Scrapyard | Entered Materials 306 | -10/Materials | Build established: Mutant 479 | -10/Materials | Discovered new exit (range 11) 608 | -10/Materials | Repaired EM Pulse Gun 621 | -10/Materials | Discovered new exit (range 5) 777 | -10/Materials | Discovered new exit (range 6) 823 | -10/Materials | Discovered new exit (range 10) 1412 | -10/Materials | Entered Mines 1465 | -10/Mines | Assisted by bots powering up and referring to "LRC-V3" 1558 | -10/Mines | Found a hidden stash of uninstalled traps 1674 | -10/Mines | Received a Rocket Launcher from a helpful Derelict 1728 | -10/Mines | Build established: Scavenger-Mutant 1906 | -10/Mines | Discovered new exit (range 9) 1924 | -10/Mines | Entered Materials 1924 | -9/Materials | Accompanied by 4 allies 1924 | -9/Materials | Evolved 2 slots: Propulsion x1, Utility x1 1934 | -9/Materials | Led the pair of lost Derelicts to an unsafe place 2279 | -9/Materials | Discovered new exit (range 16) 2443 | -9/Materials | Core integrity fell below 50% 2658 | -9/Materials | Identified exit to Mines 2658 | -9/Materials | Identified exit to Storage 2811 | -9/Materials | Self-destructed Last Messages --------------- 02763_ >> MONITOR: Recycling Unit M002 accepting Datajack (100%). 02764_ U-05 Engineer builds a Door. 02765_ K-01 Serf cleans the Material Processor. 02766_ >> MONITOR: Recycling Unit M002 accepting Lgt. Treads (90%). 02769_ >> MONITOR: Recycling Unit M002 accepting Beam Rifle (100%). 02771_ G-34 Mercenary destroyed. 02772_ >> MONITOR: Recycling Unit M002 accepting Hvy. Assault Rifle (93%). 02775_ Acquired 42 matter. 02779_ Acquired Aluminum Leg. 02789_ K-01 Serf collects debris. 02795_ >> MONITOR: Recycling Unit M002 accepting Lrg. Matter Pod (100%). 02795_ K-01 Serf collects debris. 02798_ >> MONITOR: Recycling Unit M002 accepting Signal Interpreter (70%). 02801_ R-06 Scavenger inserts Hover Unit into recycling unit. 02801_ >> MONITOR: Recycling Unit M002 accepting Hover Unit (86%). 02801_ Hover Unit discarded by recycling unit. 02804_ R-06 Scavenger inserts Ion Engine into recycling unit. 02804_ >> MONITOR: Recycling Unit M002 accepting Ion Engine (50%). 02804_ Ion Engine discarded by recycling unit. 02810_ Acquired Weight Redist. System. Map ----- +----------------------------------------------------+ | #[*[! """ #????????????????????????????????#+ | | ## # [ #?????????????????###########????# | | ## ###########?????????????????# ##???# | | ## #???????????????????????????#"" [[[ #???# | | ## #???????????????????????????#"" [[[ #????# | | ## %#???????????????????????????#"T [[[ #???## | | ## ##???#######????????????????#"" [%[#???# | | # ]% *##### #????????????????#"" = #???# | | #!! =[%[[ #????????????????# #???# | | +=% [*[ #????????????????# ##### | | #% ==%%% #??????????????########+######## | | # ##### #??????????##### * *% | | #######???## ##??????????+ % [ | | ????#####??# #???????????# * %! | | ????# ??# #####???????# [%= ######+# | | ????# ?# !!#???????# ""! #??? | | ????# ?# !!#???????+ """"" #?# !!! | | ????# """ # !!#???????# """"" #?# !!! | | ????# """ # !#???????# """"" % #?# !!! | | ????# """ + ]]#???????# """ % #?# | | ????######## ]]#??????## #?###### | | ????????#### #####??????# #?# | | ????????#" #???####### % ### | | ????????#"" #???# | | ????????#|| #####/##### ### | | ????????#"" > ##===r*[=@# #?# | | ????????#!! ##="Y"[[![## ############?###^## | | ????????#"" ##["""!=*[## #??????????????#^#? | | ????????#" ##!=[[*!![## #???###????????# #? | | ????????#### ############# ##### ###??????# #? | | ???????##### # #?## ## #??????# #? | | / """ =#?# # "T" ########!#? | | # """"" ### # # ## # #? | | "" """ # """"" + / # ######=## | | ?"" ?""""" ## """"" ###% # =*! / r r ! | | ??????"""" ## """ #?# # ! #######= % | | ??????"""" ## #?### ##### ### ### #%* = | | ???????"" ?# #???# ########?###?###! | | ??????? ?# #???# #??????????????# | | ?????? ?##########???# #??????????????+ | | ?????# ??????????????# #??????????????# | | ?????###+#####??????????????# #??????????????# ### | | ??????? ???????????????????# #??????????????# #?? | | ?????? ????????????????????? #??????????????# ??? | | ?????????????????????????????r#??????????????# ??? | | ????????????????????????????? ???????????????+ ??? | | ????????????????????????????? ???????????????? ??? | | ????????????????????????????? ???????????????? ??? | | ????????????????????????????? ???????????????? ??? | | ?????????????????????????????????????????????? ??? | +----------------------------------------------------+ Best States ------------- Heat Dissipation 28 Energy Generation 14 Energy Capacity 265 Matter Stores 300 Matter Capacity 300 Sight Range 16 Terrain Scan Density 10 Additional Mass Support 6 Armor Coverage 150 Evasion (%) 63 Offensive Hacking 10 Defensive Hacking 10 Item Schematics ----------------- None Robot Schematics ------------------ None Fabricated ------------ Nothing Alien Tech Used ----------------- None Achievements -------------- None Challenges ------------ None Game ------ Seed ReactiveContainmentGravjet Manual? 0 Play Time 00:23:42 Cumulative 39.6 hours Start 2022.11.06 @ 16:06:59 End 2022.11.11 @ 10:14:48 Sessions 3 Manual Loads 0 Difficulty Rogue Special Mode None Game No. 67 Rogue 67 Adventurer 0 Explorer 0 Win Type - Total 0 Types 0/0/0/0/0/0/0/0/0 Lore% 19 Gallery% 24 Achievement% 26 Wizard Run 0 Options --------- ASCII 0 Keyboard 0 Movement Mouse Keybinds 0 Fullscreen 2 Font 18/TerminusBold Map View 76x50 Tactical HUD 1 Map Filters NONE Filters NONE Steam 1 RUN: 31e01ded-ba09-442c-96f5-8889be20b608